bitfinex/quotes_ETHUSD_20240921
["timestamp","ask_amount","ask_price","bid_price","bid_amount"]
[1726922504538,0.78333381,2556.3,2556.2,3.10774404]
[1726922504848,0.82006217,2556.4,2556.2,3.10774404]
[1726922505052,0.82006217,2556.4,2556.2,3.0]
[1726922506529,0.82006217,2556.5,2556.2,3.0]
[1726922506729,0.78356195,2556.4,2556.2,3.0]
[1726922506955,0.82006217,2556.4,2556.2,5.3884]
[1726922507263,0.82006217,2556.5,2556.3,0.10775227]
[1726922507475,0.78350183,2556.4,2556.3,0.10775227]
[1726922507763,0.78350183,2556.4,2556.2,7.10790038]
[1726922508057,0.82006217,2556.4,2556.3,0.10775227]
[1726922508295,2.77872244,2556.4,2556.3,0.10775227]
[1726922508457,0.78346665,2556.4,2556.2,7.10790038]
[1726922508674,0.82006217,2556.5,2556.3,0.10775227]
[1726922508962,0.78345644,2556.4,2556.3,0.10775227]
[1726922509170,0.78345644,2556.4,2556.2,7.10790038]
[1726922509465,2.07490777,2556.5,2556.3,0.10775227]
[1726922509639,0.78346209,2556.4,2556.3,0.10775227]
[1726922509840,1.95864773,2556.4,2556.2,7.10790038]
[1726922510022,0.82006217,2556.5,2556.3,0.10775227]
[1726922510227,2.77868703,2556.4,2556.2,7.10790038]
[1726922510425,0.82006217,2556.4,2556.3,0.10775227]
[1726922510622,0.78344821,2556.4,2556.2,7.10790038]
[1726922510851,0.82006217,2556.5,2556.3,0.10775227]
[1726922511130,2.1734262,2556.4,2556.2,5.3884]
[1726922511325,0.82006217,2556.4,2556.2,5.3884]
[1726922511547,0.82006217,2556.4,2556.3,0.10775227]
[1726922511864,2.77867282,2556.4,2556.2,5.3884]
[1726922512072,0.82006217,2556.4,2556.3,0.10775227]
[1726922512274,2.77865027,2556.4,2556.3,0.10775227]
[1726922512438,2.77865027,2556.4,2556.2,5.3884]
[1726922512635,0.82006217,2556.4,2556.3,0.10775227]
[1726922512945,2.77866667,2556.4,2556.2,5.3884]
[1726922513136,0.82006217,2556.4,2556.3,0.10775227]
[1726922513333,3.09126747,2556.4,2556.3,0.10775227]
[1726922513539,2.99346909,2556.4,2556.1,3.5]
[1726922513748,2.77870501,2556.3,2556.1,3.5]
[1726922514071,0.82006217,2556.3,2556.2,0.10773582]
[1726922514271,1.95863183,2556.3,2556.2,0.10773582]
[1726922514471,2.778694,2556.3,2556.2,0.10773582]
[1726922514851,0.78345273,2556.3,2556.2,0.10773582]
[1726922515636,2.77938419,2556.3,2556.2,0.10773582]
[1726922517084,3.38509041,2556.3,2556.2,0.10773582]
[1726922518252,3.38569549,2556.3,2556.2,0.10773582]
[1726922520290,3.38569549,2556.3,2556.1,3.5]
[1726922520448,1.9599271,2556.2,2556.1,3.5]
[1726922520653,1.96014175,2556.2,2556.1,3.60776874]
[1726922520893,0.78397084,2556.2,2556.1,3.60776874]
[1726922521450,0.82006217,2556.3,2556.1,3.60776874]
[1726922522386,0.7841536,2556.2,2556.1,3.60776874]
[1726922526466,0.78432756,2556.2,2556.1,3.60776874]
[1726922526695,2.78086188,2556.2,2556.1,3.60776874]
[1726922527008,0.78432756,2556.2,2556.1,3.60776874]
[1726922527408,1.96087367,2556.2,2556.1,3.60776874]
[1726922527714,0.78432756,2556.2,2556.1,3.60776874]
[1726922528073,2.7809441,2556.2,2556.1,3.60776874]
[1726922528893,1.96088193,2556.2,2556.1,3.60776874]
[1726922529099,0.78432756,2556.2,2556.1,3.60776874]
[1726922530714,1.96196229,2556.2,2556.1,3.60776874]
[1726922530867,2.7820195,2556.2,2556.1,3.60776874]
[1726922531067,0.82006217,2556.2,2556.1,3.60776874]
[1726922531317,2.78278329,2556.2,2556.1,3.60776874]
[1726922532770,2.78304692,2556.2,2556.1,3.60776874]
[1726922534918,1.23008358,2556.3,2556.1,3.60776874]
[1726922534919,0.82006217,2556.3,2556.1,2.32726912]
[1726922535074,0.82006217,2556.3,2556.2,5.288]
[1726922535274,0.78536677,2556.3,2556.2,5.288]
[1726922535476,0.78536677,2556.3,2556.2,5.39580164]
[1726922536184,0.7853744,2556.3,2556.2,5.39580164]
[1726922537192,0.82006217,2556.5,2556.3,2.288]
[1726922537387,0.82006217,2556.5,2556.4,5.288]
[1726922537608,0.82006217,2556.7,2556.5,2.288]
[1726922537910,0.82006217,2556.8,2556.7,2.288]
[1726922538116,2.78406105,2556.8,2556.7,2.288]
[1726922538488,0.78559955,2556.8,2556.7,2.288]
[1726922540617,0.82006217,2556.9,2556.7,2.288]
[1726922542514,3.91,2557.0,2556.9,2.479]
[1726922543545,2.91777505,2557.1,2556.9,2.479]
[1726922544427,2.91777505,2557.1,2557.0,1.71950038]
[1726922554270,2.91777505,2557.1,2556.9,2.479]
[1726922557248,2.91777505,2557.1,2556.9,4.19850038]
[1726922559880,2.91777505,2557.1,2557.0,3.0]
[1726922569085,2.91777505,2557.1,2557.0,3.71985004]
[1726922569289,2.91777505,2557.1,2557.0,3.13085004]
[1726922569629,2.91777505,2557.1,2557.0,6.13085004]
[1726922570728,74.078,2557.4,2557.1,3.0]
[1726922570898,74.078,2557.4,2557.1,4.71950038]
[1726922571101,67.15,2557.4,2557.3,4.13050038]
[1726922590048,67.15,2557.4,2557.3,1.71950038]
[1726922590959,67.15,2557.4,2557.2,3.0]
[1726922591322,67.15,2557.4,2557.1,2.309]
[1726922591632,71.18079528,2557.4,2557.2,3.0]
[1726922595247,71.18079528,2557.4,2557.1,1.71950038]
[1726922598261,67.15,2557.4,2557.1,1.71950038]
[1726922602856,67.97006217,2557.4,2557.1,1.71950038]
[1726922603057,67.15,2557.4,2557.1,1.71950038]
[1726922603492,67.97006217,2557.4,2557.1,1.71950038]
[1726922605548,0.78446859,2557.3,2557.1,1.71950038]
[1726922605766,67.97006217,2557.4,2557.1,1.71950038]
[1726922606388,0.78486266,2557.3,2557.1,1.71950038]
[1726922606587,67.97006217,2557.4,2557.1,1.71950038]
[1726922606887,0.78490168,2557.3,2557.1,1.71950038]
[1726922607060,67.97006217,2557.4,2557.1,1.71950038]
[1726922607263,0.78495025,2557.3,2557.1,1.71950038]
[1726922607469,67.97006217,2557.4,2557.1,1.71950038]
[1726922607796,0.78497914,2557.3,2557.1,1.71950038]
[1726922607949,67.97006217,2557.4,2557.1,1.71950038]
[1726922608149,0.78493612,2557.3,2557.1,1.71950038]
[1726922608350,67.97006217,2557.4,2557.1,1.71950038]
[1726922608651,0.78494559,2557.3,2557.1,1.71950038]
[1726922608850,67.97006217,2557.4,2557.1,1.71950038]
[1726922609051,0.7849919,2557.3,2557.1,1.71950038]
[1726922609361,67.97006217,2557.4,2557.1,1.71950038]
[1726922609559,0.78503243,2557.3,2557.1,1.71950038]
[1726922609743,67.97006217,2557.4,2557.1,1.71950038]
[1726922609947,0.78503758,2557.3,2557.1,1.71950038]
[1726922610148,0.82006217,2557.3,2557.1,1.71950038]
[1726922610348,67.97006217,2557.4,2557.1,1.71950038]
[1726922610645,2.78275792,2557.3,2557.1,1.71950038]
[1726922610992,0.82006217,2557.3,2557.1,1.71950038]
[1726922611492,0.785138,2557.2,2557.1,1.71950038]
[1726922612285,0.82006217,2557.3,2557.1,1.71950038]
[1726922612644,0.78524493,2557.2,2557.1,1.71950038]
[1726922613186,0.82006217,2557.3,2557.1,1.71950038]
[1726922614079,0.78523178,2557.2,2557.1,1.71950038]
[1726922615187,0.82006217,2557.3,2557.1,1.71950038]
[1726922616284,0.78536009,2557.2,2557.1,1.71950038]
[1726922616586,0.78536393,2557.2,2557.1,1.71950038]
[1726922617867,0.78541344,2557.2,2557.1,1.71950038]
[1726922618106,0.82006217,2557.3,2557.1,4.71950038]
[1726922618471,0.82006217,2557.3,2557.1,1.71950038]
[1726922618870,0.78539378,2557.2,2557.1,1.71950038]
[1726922621378,0.78594656,2557.2,2557.1,1.71950038]
[1726922623710,0.78594376,2557.2,2557.1,1.71950038]
[1726922623913,0.82006217,2557.3,2557.1,1.71950038]
[1726922624228,0.82006217,2557.3,2557.1,4.71950038]
[1726922624434,0.82006217,2557.3,2557.1,1.71950038]
[1726922624741,0.78596238,2557.2,2557.1,1.71950038]
[1726922625507,0.82006217,2557.3,2557.1,1.71950038]
[1726922629397,0.78596119,2557.2,2557.1,1.71950038]
[1726922629810,0.82006217,2557.3,2557.1,1.71950038]
[1726922630131,0.78596735,2557.2,2557.1,1.71950038]
[1726922630298,0.82006217,2557.3,2557.1,1.71950038]
[1726922630818,0.78600242,2557.2,2557.1,1.71950038]
[1726922635797,1.96543463,2557.2,2557.1,1.71950038]
[1726922636066,1.96543825,2557.2,2557.1,1.71950038]
[1726922636210,0.78617868,2557.2,2557.1,1.71950038]
[1726922636437,1.9654929,2557.2,2557.1,1.71950038]
[1726922636605,0.78617868,2557.2,2557.1,1.71950038]
[1726922637501,1.96552041,2557.2,2557.1,1.71950038]
[1726922637916,2.78558258,2557.2,2557.1,1.71950038]
[1726922638634,0.78617868,2557.2,2557.1,1.71950038]
[1726922639636,1.9655002,2557.2,2557.1,1.71950038]
[1726922640001,0.78617868,2557.2,2557.1,1.71950038]
[1726922640303,2.78557393,2557.2,2557.1,1.71950038]
[1726922640499,1.96551176,2557.2,2557.1,1.71950038]
[1726922640700,0.78617868,2557.2,2557.1,7.05820038]
[1726922641209,0.82006217,2557.3,2557.1,7.96887547]
[1726922641400,0.82006217,2557.3,2557.2,3.0]
[1726922641595,2.78564797,2557.3,2557.2,3.0]
[1726922642846,0.78623432,2557.3,2557.2,3.0]
[1726922643198,1.96558444,2557.3,2557.2,3.0]
[1726922643640,0.78623432,2557.3,2557.2,3.0]
[1726922643842,67.97006217,2557.4,2557.2,3.0]
[1726922644137,1.96558707,2557.3,2557.1,5.3387]
[1726922644346,0.82006217,2557.3,2557.1,5.3387]
[1726922644648,67.97006217,2557.4,2557.1,5.3387]
[1726922644841,1.96550848,2557.3,2557.1,5.3387]
[1726922645138,67.97006217,2557.4,2557.1,5.3387]
[1726922645338,1.96550451,2557.3,2557.1,5.3387]
[1726922645544,67.97006217,2557.4,2557.2,4.71950038]
[1726922645743,0.78619021,2557.3,2557.2,4.71950038]
[1726922645912,1.9654693,2557.3,2557.2,4.71950038]
[1726922646302,2.78553147,2557.3,2557.2,4.71950038]
[1726922647724,1.9654693,2557.3,2557.2,4.71950038]
[1726922647924,0.78619021,2557.3,2557.2,4.71950038]
[1726922648225,1.96541751,2557.3,2557.2,4.71950038]
[1726922648746,1.96518223,2557.3,2557.2,1.71950038]
[1726922649061,2.7852444,2557.3,2557.2,1.71950038]
[1726922649609,2.7852444,2557.3,2557.0,5.53892059]
[1726922649811,0.78607289,2557.2,2557.0,4.71950038]
[1726922650007,0.82006217,2557.3,2557.0,4.71950038]
[1726922650255,0.78613538,2557.2,2557.0,4.71950038]
[1726922650553,0.82006217,2557.3,2557.0,4.71950038]
[1726922650843,0.78613212,2557.2,2557.0,4.71950038]
[1726922651083,0.82006217,2557.3,2557.0,4.71950038]
[1726922651225,0.78613286,2557.2,2557.0,4.71950038]
[1726922651553,0.82006217,2557.3,2557.0,4.71950038]
[1726922651852,0.78612061,2557.2,2557.0,4.71950038]
[1726922652058,0.82006217,2557.3,2557.0,4.71950038]
[1726922652226,0.78614058,2557.2,2557.0,4.71950038]
[1726922652435,0.82006217,2557.3,2557.0,4.71950038]
[1726922652728,0.7861391,2557.2,2557.0,4.71950038]
[1726922652927,0.82006217,2557.3,2557.0,4.71950038]
[1726922653116,0.78613794,2557.2,2557.0,4.71950038]
[1726922653320,0.82006217,2557.3,2557.0,5.53892059]
[1726922653654,0.78613498,2557.2,2557.0,5.53892059]
[1726922653957,0.82006217,2557.3,2557.0,4.71950038]
[1726922654134,0.78611992,2557.2,2557.0,4.71950038]
[1726922654340,0.82006217,2557.3,2557.0,4.71950038]
[1726922654540,0.78607814,2557.2,2557.0,4.71950038]
[1726922654753,0.82006217,2557.3,2557.0,4.71950038]
[1726922654979,0.78606293,2557.2,2557.0,4.71950038]
[1726922655282,0.82006217,2557.3,2557.0,4.71950038]
[1726922655451,0.78607658,2557.2,2557.0,4.71950038]
[1726922655651,0.82006217,2557.3,2557.0,4.71950038]
[1726922655866,0.78607205,2557.2,2557.0,4.71950038]
[1726922656037,0.82006217,2557.3,2557.0,4.71950038]
[1726922656237,0.78607787,2557.2,2557.0,4.71950038]
[1726922656574,0.82006217,2557.3,2557.0,4.71950038]
[1726922656781,0.78607945,2557.2,2557.0,4.71950038]
[1726922656951,0.82006217,2557.2,2557.0,4.71950038]
[1726922657367,0.82006217,2557.3,2557.0,4.71950038]
[1726922657668,0.78610394,2557.2,2557.0,4.71950038]
[1726922657842,0.82006217,2557.3,2557.0,4.71950038]
[1726922658045,0.78609865,2557.2,2557.0,4.71950038]
[1726922658367,0.82006217,2557.3,2557.0,4.71950038]
[1726922658539,0.78636011,2557.2,2557.0,4.71950038]
[1726922658741,0.82006217,2557.3,2557.0,4.71950038]
[1726922659038,0.78637348,2557.2,2557.0,4.71950038]
[1726922659239,0.82006217,2557.3,2557.0,4.71950038]
[1726922659439,0.78635683,2557.2,2557.0,4.71950038]
[1726922659639,0.82006217,2557.3,2557.0,5.53892059]
[1726922660348,0.78638024,2557.2,2557.0,5.53892059]
[1726922660540,0.82006217,2557.3,2557.0,5.53892059]
[1726922660744,0.78638882,2557.2,2557.0,5.53892059]
[1726922660952,0.82006217,2557.3,2557.0,5.53892059]
[1726922661157,0.78637119,2557.2,2557.0,4.71950038]
[1726922661359,0.82006217,2557.3,2557.0,4.71950038]
[1726922661541,1.96593545,2557.2,2557.0,4.71950038]
[1726922661892,0.82006217,2557.3,2557.0,4.71950038]
[1726922662052,0.78637789,2557.2,2557.0,4.71950038]
[1726922662383,0.82006217,2557.3,2557.0,5.53892059]
[1726922668671,0.7863587,2557.2,2557.0,5.53892059]
[1726922668886,0.82006217,2557.3,2557.0,5.53892059]
[1726922669198,0.78636384,2557.2,2557.0,5.53892059]
[1726922669406,0.82006217,2557.3,2557.0,5.53892059]
[1726922669696,67.97006217,2557.4,2557.0,5.53892059]
[1726922669903,0.78637437,2557.3,2557.0,5.53892059]
[1726922670073,0.7863271,2557.2,2557.0,5.53892059]
[1726922670275,0.82006217,2557.3,2557.0,5.53892059]
[1726922670605,67.97006217,2557.4,2557.0,5.53892059]
[1726922670754,0.78637008,2557.3,2557.0,5.53892059]
[1726922670958,67.97006217,2557.4,2557.0,5.53892059]
[1726922671183,0.78636659,2557.3,2557.0,5.53892059]
[1726922671382,67.97006217,2557.4,2557.0,5.53892059]
[1726922671583,0.78636265,2557.3,2557.0,5.53892059]
[1726922671784,72.00085745,2557.4,2557.0,5.53892059]
[1726922671996,4.71642809,2557.3,2557.0,3.0]
[1726922672193,2.78586941,2557.2,2557.0,3.0]
[1726922672371,0.78636246,2557.1,2557.0,3.0]
[1726922673494,0.82006217,2557.2,2557.0,3.0]
[1726922673674,0.82006217,2557.2,2557.1,4.71950038]
[1726922673874,2.78563234,2557.2,2557.1,1.71950038]
[1726922675304,2.78562751,2557.2,2557.1,1.71950038]
[1726922677791,2.78541577,2557.2,2557.1,1.71950038]
[1726922678112,0.78614144,2557.2,2557.1,1.71950038]
[1726922678423,2.78540757,2557.2,2557.1,1.71950038]
[1726922679719,2.78540757,2557.2,2557.1,2.04378349]
[1726922682726,2.78661258,2557.2,2557.1,2.04378349]
[1726922682894,2.78661258,2557.2,2557.1,2.04376169]
[1726922686020,2.78661258,2557.2,2557.1,1.71950038]
[1726922686426,2.78661258,2557.2,2557.1,2.04374619]
[1726922687393,2.786531,2557.2,2557.1,2.04374619]
[1726922688226,0.78658753,2557.2,2557.1,2.04374619]
[1726922690821,1.96756865,2557.2,2557.1,2.04374619]
[1726922690999,0.78658753,2557.2,2557.1,2.04374619]
[1726922691691,1.96761049,2557.2,2557.1,2.04374619]
[1726922691893,0.78658753,2557.2,2557.1,2.04374619]
[1726922692107,0.78658753,2557.2,2557.1,8.30633283]
[1726922692314,68.38008358,2557.4,2557.2,3.0]
[1726922692315,67.15,2557.4,2557.2,3.0]
[1726922692528,67.15,2557.4,2557.3,7.16190038]
[1726922692895,67.15,2557.4,2557.3,7.48612795]
[1726922693206,67.15,2557.4,2557.3,7.48612102]
[1726922694608,67.15,2557.4,2557.3,9.34102705]
[1726922694812,67.15,2557.4,2557.3,8.52160684]
[1726922695010,67.15,2557.4,2557.3,9.75073716]
[1726922695496,67.15,2557.4,2557.3,8.52160684]
[1726922695822,67.15,2557.4,2557.3,9.34244231]
[1726922696182,67.15,2557.4,2557.3,8.52160684]
[1726922696500,67.15,2557.4,2557.3,9.3422078]
[1726922701140,67.15,2557.4,2557.3,8.52160684]
[1726922701342,67.15,2557.4,2557.3,9.3422078]
[1726922701500,67.15,2557.4,2557.3,8.1973862]
[1726922702096,67.15,2557.4,2557.3,9.01798716]
[1726922702296,67.15,2557.4,2557.3,8.1973862]
[1726922721289,67.15,2557.4,2557.3,7.16190038]
[1726922733166,67.15,2557.4,2557.3,7.98250134]
[1726922735390,67.15,2557.4,2557.3,3.82060096]
[1726922735684,67.15,2557.4,2557.3,4.71950038]
[1726922735832,67.15,2557.4,2557.3,1.71950038]
[1726922755707,67.15,2557.4,2557.3,4.02640038]
[1726922756015,67.15,2557.4,2557.3,7.84700134]
[1726922758793,67.15,2557.4,2557.3,7.02640038]
[1726922759687,67.15,2557.4,2557.3,7.84700134]
[1726922759894,73.01359528,2557.4,2557.2,0.82060096]
[1726922760226,5.74332,2557.2,2557.1,0.01777893]
[1726922760375,9.50418296,2557.2,2557.1,0.01777893]
[1726922760574,13.86691873,2557.2,2557.1,0.01777893]
[1726922760817,1.8328,2557.1,2556.7,0.61098168]
[1726922761030,3.06115423,2556.9,2556.7,0.61098168]
[1726922761176,2.06613489,2556.8,2556.7,0.61098168]
[1726922761378,3.56064902,2556.8,2556.4,1.71950038]
[1726922761581,1.59230684,2556.8,2556.4,1.71950038]
[1726922761895,0.78606058,2556.7,2556.4,1.71950038]
[1726922762100,1.59230684,2556.8,2556.5,0.07897938]
[1726922762411,0.77430219,2556.8,2556.4,1.71950038]
[1726922762618,0.34251068,2556.7,2556.4,1.71950038]
[1726922762990,0.34251068,2556.7,2556.5,0.07897938]
[1726922763219,1.8328,2556.6,2556.5,0.07897938]
[1726922763416,1.8328,2556.6,2556.2,1.71950038]
[1726922763918,1.8328,2556.6,2556.3,0.07897938]
[1726922764121,1.8328,2556.4,2556.1,0.5]
[1726922764415,1.8328,2556.4,2556.2,0.07897938]
[1726922765115,1.8328,2556.4,2556.1,0.5]
[1726922765315,1.8328,2556.4,2556.2,0.07897938]
[1726922769021,1.8328,2556.4,2556.2,1.79847976]
[1726922770418,1.8328,2556.4,2556.2,0.07897938]
[1726922774522,0.09780559,2556.3,2556.1,0.5]
[1726922774723,0.09780559,2556.3,2556.2,0.07737545]
[1726922775723,0.09780559,2556.3,2556.2,0.07629102]
[1726922776229,1.8328,2556.4,2556.2,0.07629102]
[1726922779050,1.82871188,2556.4,2556.2,0.07629102]
[1726922786775,0.09780962,2556.3,2556.2,0.07629102]
[1726922786989,1.92650962,2556.3,2556.2,3.84e-06]
[1726922787152,1.92650962,2556.3,2556.2,0.07383015]
[1726922787675,1.92650962,2556.3,2556.1,0.5]
[1726922787881,1.8287,2556.3,2556.2,0.07136914]
[1726922789077,1.8287,2556.3,2556.2,0.03776851]
[1726922789288,1.8287,2556.3,2556.2,0.07024912]
[1726922790043,1.8287,2556.3,2556.2,0.03745872]
[1726922790252,1.8287,2556.3,2556.2,0.07024911]
[1726922791787,2.81196773,2556.3,2556.1,0.5]
[1726922792193,2.81196773,2556.3,2556.2,0.06915611]
[1726922792557,2.81196773,2556.3,2556.2,0.06106095]
[1726922794000,2.81196773,2556.3,2556.2,0.06764275]
[1726922794901,2.81196773,2556.3,2556.2,1e-08]
[1726922795067,2.81196773,2556.3,2556.2,0.06538799]
[1726922795594,2.81196773,2556.3,2556.2,0.0632084]
[1726922795955,2.81196773,2556.3,2556.2,0.04296521]
[1726922796189,2.81196773,2556.3,2556.2,0.06253363]
[1726922796589,2.81196773,2556.3,2556.2,0.06110145]
[1726922802469,2.81196773,2556.3,2556.2,0.04602635]
[1726922802762,2.81196773,2556.3,2556.2,0.06062765]
[1726922804118,6.928,2556.4,2556.2,1.78012803]
[1726922804273,6.928,2556.4,2556.2,1.71950038]
[1726922804467,6.928,2556.4,2556.3,0.06072607]
[1726922804884,6.928,2556.4,2556.2,1.71950038]
[1726922805200,6.928,2556.4,2556.3,0.06072607]
[1726922805518,7.71641807,2556.4,2556.1,3.5]
[1726922805692,6.928,2556.4,2556.2,0.06072607]
[1726922806217,7.74600465,2556.4,2556.2,0.06072607]
[1726922806402,6.928,2556.4,2556.2,0.06072607]
[1726922806599,7.74600465,2556.4,2556.2,0.06072607]
[1726922806922,6.928,2556.4,2556.2,0.06072607]
[1726922807420,7.74600465,2556.4,2556.2,0.06072607]
[1726922807993,0.788639,2556.3,2556.2,0.06072607]
[1726922808984,7.74600465,2556.4,2556.2,0.06072607]
[1726922810283,6.928,2556.4,2556.2,0.06072607]
[1726922810914,0.81800465,2556.4,2556.2,0.06072607]
[1726922811120,0.78890745,2556.3,2556.2,0.06072607]
[1726922811280,0.81800465,2556.4,2556.2,0.06072607]
[1726922811477,0.78889538,2556.3,2556.2,0.06072607]
[1726922811680,0.81800465,2556.4,2556.2,0.06072607]
[1726922811879,0.81800465,2556.4,2556.3,2.3309]
[1726922812185,0.78890309,2556.4,2556.3,2.39140462]
[1726922812701,0.78890309,2556.4,2556.3,0.06050462]
[1726922812913,2.79022344,2556.4,2556.1,2.8309]
[1726922813208,0.78890309,2556.3,2556.2,0.06048822]
[1726922813530,0.78883342,2556.3,2556.2,0.06048822]
[1726922813729,0.78883518,2556.3,2556.2,0.06048822]
[1726922813956,0.78883518,2556.3,2556.2,0.38471315]
[1726922814439,0.78886177,2556.3,2556.2,0.38471315]
[1726922814791,0.81800465,2556.4,2556.2,0.38471315]
[1726922814997,0.81800465,2556.4,2556.3,0.32422493]
[1726922815234,2.79017843,2556.4,2556.3,0.32422493]
[1726922815736,2.79017843,2556.4,2556.1,2.8309]
[1726922815890,0.78886951,2556.3,2556.2,0.06048822]
[1726922816091,0.81800465,2556.4,2556.3,0.32423002]
[1726922816466,2.7901764,2556.4,2556.3,0.32423002]
[1726922816613,2.7901764,2556.4,2556.3,0.38471824]
[1726922819141,0.81800465,2556.4,2556.3,0.38471824]
[1726922819340,2.79036115,2556.4,2556.3,0.38471824]
[1726922820353,2.79036115,2556.4,2556.3,0.32423002]
[1726922820656,2.79036115,2556.4,2556.3,0.38472644]
[1726922821223,0.7889426,2556.4,2556.3,0.06049642]
[1726922821428,2.79038081,2556.4,2556.3,0.06049642]
[1726922821618,2.79038081,2556.4,2556.2,3.0]
[1726922821815,1.63780564,2556.7,2556.4,5.4124]
[1726922821816,0.81800465,2556.7,2556.4,5.4124]
[1726922822015,0.81800465,2556.8,2556.5,4.7799476]
[1726922822210,0.78905144,2556.7,2556.5,4.71950038]
[1726922822529,0.81800465,2556.8,2556.6,0.38464822]
[1726922822858,0.81800465,2556.8,2556.7,0.324201]
[1726922823012,2.79019513,2556.8,2556.7,0.324201]
[1726922824153,2.79019513,2556.8,2556.6,0.324201]
[1726922824329,0.78887619,2556.7,2556.5,4.71950038]
[1726922824526,0.81800465,2556.8,2556.7,0.06044722]
[1726922824732,0.81800465,2556.8,2556.5,4.71950038]
[1726922824733,2.79157703,2556.8,2556.5,4.71950038]
[1726922825044,0.78942895,2556.7,2556.5,4.71950038]
[1726922825243,0.81800465,2556.8,2556.5,4.71950038]
[1726922825549,0.81800465,2556.8,2556.4,2.4124]
[1726922826041,0.81800465,2556.8,2556.4,5.4124]
[1726922826241,0.78928415,2556.7,2556.4,5.4124]
[1726922826418,0.81800465,2556.8,2556.4,5.4124]
[1726922826755,0.78924346,2556.7,2556.4,5.4124]
[1726922826914,0.81800465,2556.8,2556.5,0.06044722]
[1726922827113,0.78925943,2556.7,2556.4,5.4124]
[1726922827314,0.81800465,2556.8,2556.5,0.06044722]
[1726922827514,0.7892305,2556.7,2556.4,5.4124]
[1726922827752,0.81800465,2556.8,2556.5,0.06044722]
[1726922827961,0.78915164,2556.7,2556.4,5.4124]
[1726922828123,0.81800465,2556.8,2556.5,0.06044722]
[1726922828459,0.91579608,2556.9,2556.4,5.4124]
[1726922828618,2.79074332,2556.8,2556.4,5.4124]
[1726922828813,0.78909547,2556.7,2556.4,5.4124]
[1726922829144,0.81800465,2556.8,2556.5,0.06044722]
[1726922829320,2.27721126,2556.9,2556.4,5.4124]
[1726922829321,1.86686168,2556.9,2556.4,5.4124]
[1726922829523,0.78910938,2556.8,2556.4,5.4124]
[1726922829820,1.86686168,2556.9,2556.4,5.4124]
[1726922830156,0.78905221,2556.8,2556.4,5.4124]
[1726922830367,1.86686168,2556.9,2556.4,5.4124]
[1726922830569,0.78898692,2556.8,2556.4,5.4124]
[1726922830778,1.86686168,2556.9,2556.4,5.4124]
[1726922830937,0.78899621,2556.8,2556.4,5.4124]
[1726922831136,1.86686168,2556.9,2556.4,5.4124]
[1726922831501,0.78900449,2556.8,2556.4,5.4124]
[1726922831671,1.86686168,2556.9,2556.4,5.4124]
[1726922831836,0.78895444,2556.8,2556.4,5.4124]
[1726922832033,1.86686168,2556.9,2556.4,5.4124]
[1726922832265,0.78895501,2556.8,2556.4,5.4124]
[1726922832443,1.76907025,2556.9,2556.4,5.4124]
[1726922832649,0.81800465,2556.9,2556.8,2.4124]
[1726922832863,0.81800465,2557.3,2556.8,5.4124]
[1726922833035,0.81800465,2557.3,2556.5,0.06505014]
[1726922833036,0.81800465,2557.3,2557.1,2.4124]
[1726922833236,74.078,2557.4,2557.1,5.4124]
[1726922833943,78.10879528,2557.4,2557.1,5.4124]
[1726922834535,78.10879528,2557.4,2557.1,2.4124]
[1726922834750,78.10879528,2557.4,2556.8,7.13190038]
[1726922834751,1.8287,2557.3,2556.8,7.13190038]
[1726922834947,1.92647624,2557.3,2556.8,7.13190038]
[1726922835983,78.85327617,2557.4,2556.8,7.13190038]
[1726922836187,4.03079528,2557.3,2556.8,2.4124]
[1726922836342,4.10265481,2557.3,2556.8,2.4124]
[1726922837686,4.92065946,2557.3,2556.4,2.4124]
[1726922837841,2.75481269,2557.2,2556.4,2.4124]
[1726922838179,1.53230182,2557.1,2556.4,2.4124]
[1726922838378,0.75760628,2557.1,2556.5,1.71950038]
[1726922839084,0.75760628,2557.1,2556.5,4.71950038]
[1726922850166,2.73962852,2557.1,2556.5,4.71950038]
[1726922850368,1.57561093,2557.1,2556.5,4.71950038]
[1726922851587,1.05644367,2557.0,2556.5,4.71950038]
[1726922851787,0.07185953,2556.9,2556.5,4.71950038]
[1726922854154,0.07185953,2557.0,2556.5,4.71950038]
[1726922858936,1.23784647,2557.0,2556.5,4.71950038]
[1726922859242,0.07185953,2557.0,2556.5,4.71950038]
[1726922859411,0.88986418,2557.0,2556.5,4.71950038]
[1726922859734,1.1702607,2557.0,2556.5,4.71950038]
[1726922861307,0.77762493,2556.9,2556.5,4.71950038]
[1726922861701,0.88986418,2557.0,2556.5,4.71950038]
[1726922861863,0.77819081,2556.9,2556.5,4.71950038]
[1726922862012,0.88986418,2557.0,2556.5,4.71950038]
[1726922862205,0.77820178,2556.9,2556.5,4.71950038]
[1726922862406,0.88986418,2557.0,2556.5,4.71950038]
[1726922862644,0.77827577,2556.9,2556.5,4.71950038]
[1726922862827,0.88986418,2557.0,2556.5,4.71950038]
[1726922863025,0.77828749,2556.9,2556.5,4.71950038]
[1726922863352,0.88986418,2557.0,2556.5,4.71950038]
[1726922863649,0.77838492,2556.9,2556.5,4.71950038]
[1726922863835,0.88986418,2557.0,2556.5,4.71950038]
[1726922864021,0.77838517,2556.9,2556.5,4.71950038]
[1726922864222,0.88986418,2557.0,2556.5,4.71950038]
[1726922864426,2.76424557,2556.9,2556.5,4.71950038]
[1726922864636,0.81800465,2556.9,2556.5,4.71950038]
[1726922868320,1.30021376,2557.0,2556.5,4.71950038]
[1726922868321,0.81800465,2557.0,2556.8,2.2632]
[1726922868635,1.22835423,2557.1,2556.8,2.2632]
[1726922868636,0.81800465,2557.1,2556.9,1.71950038]
[1726922868839,0.81800465,2557.2,2557.0,5.2632]
[1726922869051,0.81800465,2557.3,2557.1,1.71950038]
[1726922869277,0.77923627,2557.2,2557.1,1.71950038]
[1726922869557,0.81800465,2557.3,2557.0,5.2632]
[1726922869912,0.77917822,2557.2,2557.0,5.2632]
[1726922870112,0.81800465,2557.3,2557.0,5.2632]
[1726922870355,0.77924006,2557.2,2557.0,5.2632]
[1726922870550,0.81800465,2557.3,2557.0,5.2632]
[1726922870741,0.77927047,2557.2,2557.0,5.2632]
[1726922870942,0.81800465,2557.3,2557.0,5.2632]
[1726922871259,0.77932334,2557.2,2557.0,5.2632]
[1726922871556,0.81800465,2557.3,2557.0,5.2632]
[1726922871753,0.77929315,2557.2,2557.0,5.2632]
[1726922871972,0.81800465,2557.3,2557.0,5.2632]
[1726922872545,0.77926738,2557.2,2557.0,5.2632]
[1726922872760,0.81800465,2557.3,2557.0,5.2632]
[1726922873255,0.77926222,2557.2,2557.0,5.2632]
[1726922873457,0.81800465,2557.3,2557.0,5.2632]
[1726922873647,0.77922246,2557.2,2557.0,5.2632]